fUST/lending_fUST_20251011
["ID","MTS","AMOUNT","RATE_DAILY","PERIOD"]
[390884233,1760193342216,-500.0,0.00024233,2]
[390884234,1760193342249,-500.0,0.00024233,2]
[390884235,1760193342279,-500.0,0.00024233,2]
[390884236,1760193342310,-174.21184356,0.00024233,2]
[390884237,1760193346929,-362.89111792,0.00024233,2]
[390884238,1760193346963,-500.0,0.00024233,2]
[390884239,1760193346997,-532.5114009,0.00024233,2]
[390884240,1760193351049,150.0,0.00018953,2]
[390884241,1760193351131,479.17,0.00024224,3]
[390884242,1760193351430,244.25,0.00020676,2]
[390884243,1760193351851,366.37,0.00022399,2]
[390884244,1760193352461,488.49,0.00024122,2]
[390884245,1760193354906,160.0,0.00024233,2]
[390884246,1760193357279,5000.0,0.00024234,2]
[390884249,1760193372666,168.59572537,0.00024233,2]
[390884250,1760193381021,5000.0,0.0002399,2]
[390884251,1760193403904,5000.0,0.00024234,2]
[390884252,1760193422333,300.0,0.00024233,2]
[390884253,1760193426786,4700.01,0.00024234,2]
[390884254,1760193426811,299.99,0.00024234,2]
[390884255,1760193431990,150.0,0.00019128,2]
[390884256,1760193432384,230.23,0.00020867,2]
[390884257,1760193432828,345.34,0.00022606,2]
[390884258,1760193445895,-1200.0,0.00024233,2]
[390884259,1760193449450,5000.0,0.00024234,2]
[390884260,1760193472556,5000.0,0.00024234,2]
[390884261,1760193495476,5000.0,0.00024234,2]
[390884262,1760193513761,0.01,0.00018884,2]
[390884263,1760193513786,149.99,0.00018884,2]
[390884264,1760193514032,302.51602579,0.00024113,12]
[390884265,1760193514188,228.41,0.00020601,2]
[390884266,1760193514629,342.61,0.00022318,2]
[390884267,1760193515049,456.81,0.00024034,2]
[390884269,1760193518175,5000.0,0.00024234,2]
[390884271,1760193540923,5000.0,0.00024234,2]
[390884273,1760193563657,0.01,0.00024234,2]
[390884274,1760193563684,4999.99,0.00024234,2]
[390884275,1760193586219,-5000.0,0.00024234,2]
[390884276,1760193588239,0.01,0.00024234,2]
[390884277,1760193588264,4999.99,0.00024234,2]
[390884278,1760193594139,150.0,0.00019092,2]
[390884279,1760193594556,223.43,0.00020827,2]
[390884280,1760193595002,335.14,0.00022563,2]
[390884281,1760193611525,5000.0,0.0002399,2]
[390884282,1760193617443,-1200.0,0.00024233,2]
[390884283,1760193625004,1000.0,0.0002377,2]
[390884285,1760193627084,4068.47265181,0.00024233,2]
[390884286,1760193635477,2531.53734819,0.00024233,2]
[390884287,1760193635507,2468.46265181,0.00024233,2]
[390884291,1760193658710,5000.0,0.00024234,2]
[390884292,1760193662822,300.0,0.00024233,2]
[390884293,1760193666881,151.0,0.00017,2]
[390884294,1760193667978,151.0,0.000177,2]
[390884295,1760193671760,151.0,0.000191,2]
[390884296,1760193675301,150.0,0.00019094,2]
[390884297,1760193675767,250.34,0.0002083,2]
[390884298,1760193676197,375.51,0.00022566,2]
[390884299,1760193682041,3471.16,0.00024234,2]
[390884300,1760193685820,-1528.84,0.00024234,2]
[390884301,1760193689697,159.35963033,0.00024202,2]
[390884302,1760193704895,5000.0,0.0002399,2]
[390884305,1760193727890,5000.0,0.0002399,2]
[390884306,1760193735593,0.01,0.00017,2]
[390884307,1760193735618,150.99,0.00017,2]
[390884308,1760193751464,5000.0,0.0002399,2]
[390884309,1760193754398,150.0,0.00019205,2]
[390884310,1760193754838,250.5,0.00020951,2]
[390884311,1760193755281,375.75,0.00022697,2]
[390884313,1760193770896,228.88,0.00024224,3]
[390884314,1760193775044,3500.93914645,0.00024234,2]
[390884315,1760193781773,228.89,0.00024224,3]
[390884316,1760193782424,300.0,0.00024233,2]
[390884317,1760193792388,686.67,0.00024224,3]
[390884318,1760193798832,5000.0,0.00024234,2]
[390884319,1760193806241,177.71,0.00024224,10]
[390884320,1760193817121,419.59,0.00024224,10]
[390884322,1760193828236,349.66,0.00024224,10]
[390884324,1760193839259,291.38,0.00024224,10]
[390884325,1760193845531,150.0,0.00018875,2]
[390884326,1760193845936,238.63,0.00020591,2]
[390884327,1760193846376,357.95,0.00022307,2]
[390884328,1760193846824,477.26,0.00024023,2]
[390884329,1760193849534,242.82,0.00024224,10]
[390884331,1760193860446,202.35,0.00024224,10]
[390884332,1760193871474,168.62,0.00024224,10]
[390884333,1760193882523,843.14,0.00024224,10]
[390884334,1760193902942,206.0,0.00024233,2]
[390884336,1760193926234,150.0,0.00018877,2]
[390884337,1760193926629,207.48,0.00020593,2]
[390884338,1760193927043,311.22,0.00022309,2]
[390884339,1760193927458,206.2,0.00024025,2]
[390884340,1760193927488,208.76,0.00024025,2]
[390884341,1760193946142,205.82,0.00024224,3]
[390884342,1760193956886,617.5,0.00024224,3]
[390884346,1760194005912,150.0,0.00018872,2]
[390884347,1760194006330,179.9,0.00020588,2]
[390884348,1760194006847,269.84,0.00022303,2]
[390884349,1760194007281,359.79,0.00024019,2]
[390884350,1760194045654,1200.0,0.00024233,2]
[390884351,1760194064531,1347.75136843,0.00024234,2]
[390884352,1760194065496,2545.091025,0.00023701,2]
[390884353,1760194084554,150.0,0.00019115,2]
[390884354,1760194085124,155.47,0.00020853,2]
[390884355,1760194085590,233.21,0.00022591,2]
[390884356,1760194087873,2376.87760657,0.00024234,2]
[390884357,1760194087900,1275.371025,0.00024234,2]
[390884358,1760194108048,-151.98336284,0.00024234,2]
[390884359,1760194110008,-8.01663716,0.00024234,2]
[390884360,1760194110031,-150.0,0.00024234,2]
[390884361,1760194110052,-120.34467163,0.00024234,2]
[390884369,1760194119331,-241.40581714,0.00024234,2]
[390884370,1760194120679,-174.76358483,0.00024234,2]
[390884371,1760194122587,-159.10424614,0.00024234,2]
[390884379,1760194139566,-191.10430602,0.00024234,2]
[390884380,1760194141018,-457.18073433,0.00024234,2]
[390884410,1760194154883,3004.69108419,0.00024,2]
[390884412,1760194162000,5000.0,0.00024234,2]
[390884413,1760194163467,150.0,0.00019082,2]
[390884414,1760194163971,150.0,0.00020816,2]
[390884415,1760194164348,218.37,0.00022551,2]
[390884667,1760194240242,-11606.22282626,0.00024234,2]
[390884678,1760194240332,-3e-08,0.00024234,2]
[390884893,1760194242443,150.0,0.00019342,2]
[390884945,1760194242906,246.05,0.000211,2]
[390884981,1760194243247,-629.96091113,0.00024234,2]
[390885011,1760194243511,369.08,0.00022859,2]
[390885232,1760194246191,-735.78754062,0.00024234,2]
[390887149,1760194280228,330.866648,0.00023816,2]
[390887155,1760194296262,380.95226781,0.00024233,2]
[390887156,1760194296289,119.04773219,0.00024233,2]
[390887157,1760194296319,500.0,0.00024233,2]
[390887158,1760194296347,500.0,0.00024233,2]
[390887159,1760194296377,500.0,0.00024233,2]
[390887160,1760194296404,500.0,0.00024233,2]
[390887161,1760194296437,500.0,0.00024233,2]
[390887162,1760194296467,500.0,0.00024233,2]
[390887163,1760194296495,500.0,0.00024233,2]
[390887164,1760194296526,500.0,0.00024233,2]
[390887165,1760194296570,300.0,0.00024233,2]
[390887166,1760194296607,500.0,0.00024233,2]
[390887167,1760194296637,500.0,0.00024233,2]
[390887168,1760194296667,500.0,0.00024233,2]
[390887169,1760194296698,500.0,0.00024233,2]
[390887170,1760194296729,485.69388757,0.00024233,2]
[390887171,1760194296759,500.0,0.00024233,2]
[390887172,1760194296791,500.0,0.00024233,2]
[390887173,1760194296822,300.0,0.00024233,2]
[390887180,1760194306152,166.95068233,0.00024134,2]
[390887183,1760194316500,1628.31769791,0.00024234,2]
[390887184,1760194316527,3371.68230209,0.00024234,2]
[390887185,1760194317184,153.0,0.00021918,2]
[390887186,1760194319608,153.0,0.00021918,2]
[390887187,1760194320508,-160.0,0.00024234,2]
[390887188,1760194320836,500.0,0.00024233,2]
[390887189,1760194320866,500.0,0.00024233,2]
[390887190,1760194320902,500.0,0.00024233,2]
[390887191,1760194320936,500.0,0.00024233,2]
[390887192,1760194320967,500.0,0.00024233,2]
[390887193,1760194320997,500.0,0.00024233,2]
[390887194,1760194321032,481.16745673,0.00024233,2]
[390887195,1760194321066,500.0,0.00024233,2]
[390887196,1760194321100,500.0,0.00024233,2]
[390887197,1760194321129,500.0,0.00024233,2]
[390887198,1760194321161,500.0,0.00024233,2]
[390887199,1760194321192,265.72077984,0.00024233,2]
[390887200,1760194321221,500.0,0.00024233,2]
[390887201,1760194321253,75.43946134,0.00024233,2]
[390887202,1760194321280,424.56053866,0.00024233,2]
[390887203,1760194321309,500.0,0.00024233,2]
[390887204,1760194321338,550.92919188,0.00024233,2]
[390887205,1760194321367,500.0,0.00024233,2]
[390887206,1760194321401,500.0,0.00024233,2]
[390887207,1760194321431,500.0,0.00024233,2]
[390887208,1760194321462,500.0,0.00024233,2]
[390887209,1760194321493,500.0,0.00024233,2]
[390887210,1760194321522,500.0,0.00024233,2]
[390887211,1760194321560,300.0,0.00024233,2]
[390887212,1760194321801,150.0,0.00019366,2]
[390887213,1760194322246,245.67,0.00021127,2]
[390887214,1760194322741,368.5,0.00022887,2]
[390887215,1760194322928,-2659.77606495,0.00024234,2]
[390887216,1760194322961,-10000.01,0.00024234,2]
[390887217,1760194322988,-10000.01,0.00024234,2]
[390887218,1760194323122,-10000.01,0.00024234,2]
[390887219,1760194323262,-10000.01,0.00024234,2]
[390887220,1760194323427,-10000.01,0.00024234,2]
[390887221,1760194323644,-10000.01,0.00024234,2]
[390887222,1760194323786,-10000.01,0.00024234,2]
[390887227,1760194326577,-449.66,0.00024224,3]
[390887228,1760194326633,-9100.69,0.00024234,2]
[390887229,1760194326759,-200.0,0.00024233,2]
[390887230,1760194326800,-9600.01,0.00024234,2]
[390887231,1760194326910,-10000.01,0.00024234,2]
[390887234,1760194330701,-153.0,0.00021918,2]
[390887235,1760194330732,-153.0,0.00021918,2]
[390887236,1760194330763,-153.0,0.00021918,2]
[390887237,1760194330796,-180.41427463,0.0002362,5]
[390887238,1760194331874,5000.0,0.00023992,10]
[390887239,1760194333227,500.0,0.00024233,2]
[390887240,1760194333260,500.0,0.00024233,2]
[390887241,1760194333289,500.0,0.00024233,2]
[390887242,1760194333321,500.0,0.00024233,2]
[390887243,1760194333363,500.0,0.00024233,2]
[390887244,1760194333392,500.0,0.00024233,2]
[390887245,1760194333422,500.0,0.00024233,2]
[390887246,1760194333453,221.18145074,0.00024233,2]
[390887247,1760194333481,278.81854926,0.00024233,2]
[390887248,1760194333671,500.0,0.00024233,2]
[390887249,1760194333702,500.0,0.00024233,2]
[390887250,1760194333732,500.0,0.00024233,2]
[390887251,1760194333765,500.0,0.00024233,2]
[390887252,1760194333794,500.0,0.00024233,2]
[390887253,1760194333827,500.0,0.00024233,2]
[390887254,1760194333857,500.0,0.00024233,2]
[390887255,1760194333892,220.50606122,0.00024233,2]
[390887256,1760194333922,301.58532648,0.00024233,2]
[390887257,1760194333953,500.0,0.00024233,2]
[390887258,1760194333985,500.0,0.00024233,2]
[390887259,1760194334021,500.0,0.00024233,2]
[390887260,1760194334054,400.18184558,0.00024233,2]
[390887261,1760194334086,500.0,0.00024233,2]
[390887263,1760194335510,682.47,0.00024224,3]
[390887265,1760194344141,198.59,0.00024224,10]
[390887266,1760194346151,341.24,0.00024224,3]
[390887267,1760194347209,300.0,0.00024233,2]
[390887269,1760194355367,5000.0,0.00024234,2]
[390887271,1760194356768,170.62,0.00024224,3]
[390887273,1760194358913,1200.0,0.00024233,2]
[390887277,1760194380206,-5000.0,0.00023982,2]
[390887282,1760194402082,173.36,0.00019251,2]
[390887283,1760194402485,346.72,0.00021001,2]
[390887284,1760194402968,520.08,0.00022751,2]
[390887285,1760194414568,-5000.0,0.0002376,10]
[390887286,1760194423867,0.01,0.0002376,2]
[390887287,1760194423898,4999.99,0.0002376,2]
[390887288,1760194428717,1343.0,0.0002376,2]
[390887289,1760194430769,-4051.68,0.00024,2]
[390887290,1760194431314,-4666.11,0.00024,2]
[390887291,1760194432803,-667.79,0.00024,2]
[390887292,1760194432836,-4258.11,0.00024,2]
[390887293,1760194440665,-511.88,0.00024224,3]
[390887294,1760194440696,-300.0,0.00024233,2]
[390887295,1760194442713,3231.64,0.00024,2]
[390887297,1760194443638,300.0,0.00024233,2]
[390887299,1760194447361,5000.0,0.00024234,2]
[390887301,1760194450124,1434.48,0.00024,2]
[390887303,1760194482902,163.12,0.00018955,2]
[390887304,1760194483338,326.24,0.00020678,2]
[390887305,1760194483790,489.36,0.00022401,2]
[390887306,1760194485971,-1069.49676672,0.00023593,2]
[390887307,1760194486173,-10000.01,0.00023593,2]
[390887308,1760194486193,-10000.01,0.00023593,2]
[390887309,1760194489131,-10000.01,0.00023593,2]
[390887310,1760194489250,-10000.01,0.00023593,2]
[390887311,1760194489375,-10000.01,0.00023593,2]
[390887312,1760194495144,-4220.78169712,0.00023593,2]
[390887313,1760194495170,-1558.44660576,0.00023593,2]
[390887314,1760194495258,-5000.0,0.00023982,2]
[390887315,1760194516506,-2067.85572943,0.00023742,2]
[390887316,1760194517879,5000.0,0.00023505,2]
[390887317,1760194531516,-5000.0,0.00023982,2]
[390887318,1760194540042,0.01,0.00023982,2]
[390887319,1760194540070,4999.99,0.00023982,2]
[390887320,1760194548000,4999.99,0.00023982,2]
[390887321,1760194562492,173.97,0.00019118,2]
[390887322,1760194562933,347.94,0.00020856,2]
[390887323,1760194563344,521.91,0.00022594,2]
[390887324,1760194580007,-189.715657,0.0002364,5]
[390887325,1760194642886,160.68,0.00019026,2]
[390887326,1760194643313,321.37,0.00020756,2]
[390887327,1760194643881,482.05,0.00022486,2]
[390887330,1760194724753,150.0,0.00019035,2]
[390887331,1760194725206,296.83,0.00020765,2]
[390887332,1760194725981,445.24,0.00022496,2]
[390887333,1760194726304,-5000.0,0.00023644,2]
[390887334,1760194727336,0.01,0.00023066,2]
[390887335,1760194727360,10000.01,0.00023066,2]
[390887336,1760194727383,10000.01,0.00023066,2]
[390887337,1760194727406,9520.6270186,0.00023066,2]
[390887338,1760194727435,150.0,0.00023644,2]
[390887339,1760194735168,329.3829814,0.00023644,2]
[390887340,1760194735194,4670.6170186,0.00023644,2]
[390887341,1760194736342,-1200.0,0.00023882,2]
[390887342,1760194736373,-300.0,0.00023882,2]
[390887343,1760194741739,350.872193,0.00023156,2]
[390887344,1760194749585,4386.62,0.00030164,60]
[390887345,1760194749922,4386.62,0.00030164,60]
[390887346,1760194750133,4386.62,0.00030164,60]
[390887347,1760194751420,5000.0,0.00023882,2]
[390887348,1760194757718,4386.62,0.00030164,60]
[390887349,1760194757966,4386.62,0.00030164,60]
[390887350,1760194758197,4386.62,0.00030164,60]
[390887351,1760194758436,4386.62,0.00030164,60]
[390887352,1760194758671,4386.62,0.00030164,60]
[390887353,1760194758952,4386.62,0.00030164,60]
[390887354,1760194759188,4386.62,0.00030164,60]
[390887355,1760194759427,4386.62,0.00030164,60]
[390887356,1760194759459,1649.137807,0.00023882,2]
[390887357,1760194759485,3350.862193,0.00023882,2]
[390887358,1760194759749,4386.62,0.00030164,60]
[390887359,1760194759991,4386.62,0.00030164,60]
[390887360,1760194760228,4386.62,0.00030164,60]
[390887361,1760194760711,4386.62,0.00030164,60]
[390887362,1760194760950,4386.62,0.00030164,60]
[390887363,1760194761218,4386.62,0.00030164,60]
[390887364,1760194761467,4386.62,0.00030164,60]
[390887365,1760194761728,4386.62,0.00030164,60]
[390887366,1760194761981,4386.62,0.00030164,60]
[390887367,1760194762260,4386.62,0.00030164,60]
[390887368,1760194762610,4386.62,0.00030164,60]
[390887369,1760194762735,4386.62,0.00030164,60]
[390887370,1760194762982,4386.67293155,0.00030164,60]
[390887371,1760194782092,5000.0,0.00023882,2]
[390887372,1760194805019,1649.147807,0.00023882,2]
[390887373,1760194805051,3350.852193,0.00023882,2]
[390887374,1760194806962,150.0,0.00018898,2]
[390887375,1760194807440,274.12,0.00020616,2]
[390887376,1760194807956,411.18,0.00022334,2]
[390887377,1760194828327,5000.0,0.00023882,2]
[390887378,1760194851478,813.857807,0.00023882,2]
[390887379,1760194851505,4186.142193,0.00023882,2]
[390887380,1760194874391,5000.0,0.00023882,2]
[390887381,1760194889376,150.0,0.00018895,2]
[390887382,1760194889850,252.86,0.00020613,2]
[390887383,1760194890297,379.29,0.0002233,2]
[390887384,1760194897609,31.717807,0.00023882,2]
[390887385,1760194897640,4968.282193,0.00023882,2]
[390887386,1760194921246,4251.70047048,0.00023882,2]
[390887387,1760194940440,-505.72,0.00024048,2]
[390887388,1760194944412,899.92,0.00023882,2]
[390887389,1760194948408,-156.76143765,0.00024123,2]
[390887390,1760194950274,202894.28762873,0.00030169,60]
[390887391,1760194972869,150.0,0.0001889,2]
[390887392,1760194973446,220.08,0.00020607,2]
[390887393,1760194973894,330.11,0.00022324,2]
[390887394,1760194974342,440.15,0.00024041,2]
[390887395,1760194981317,166.95068232,0.00024023,2]
[390887398,1760195053884,150.0,0.00019093,2]
[390887399,1760195054348,191.05,0.00020829,2]
[390887400,1760195054845,286.57,0.00022565,2]
[390887403,1760195128055,-294.36967662,0.00024123,2]
[390887404,1760195130049,-227.37395084,0.00024123,2]
[390887405,1760195133284,-212.94805477,0.00024123,2]
[390887406,1760195134779,150.0,0.00018876,2]
[390887407,1760195135206,175.07,0.00020592,2]
[390887408,1760195135234,-230.37197165,0.00024123,2]
[390887409,1760195135645,262.61,0.00022308,2]
[390887410,1760195136068,350.15,0.00024024,2]
[390887411,1760195137151,-234.93634612,0.00024123,2]
[390887412,1760195137175,-49.59065199,0.00024123,2]
[390887413,1760195138693,-199.99999997,0.00024123,2]
[390887414,1760195142468,-50.40934804,0.00024123,2]
[390887415,1760195142491,-115.89406295,0.00024123,2]
[390887416,1760195144886,-396.60624955,0.00024123,2]
[390887417,1760195150627,-462.70806644,0.00024123,2]
[390887418,1760195152851,-174.6134451,0.00024123,2]
[390887419,1760195154258,-50.17817596,0.00024123,2]
[390887420,1760195154282,-107.82182404,0.00024124,6]
[390887421,1760195156021,-63.72217596,0.00024124,6]
[390887422,1760195156045,-287.12728628,0.00024124,3]
[390887423,1760195162701,2909.4078846,0.00023159,2]
[390887424,1760195173397,-260.10995628,0.00024124,3]
[390887425,1760195175867,-69.36275744,0.00024124,3]
[390887426,1760195175891,-106.80266794,0.00024124,3]
[390887427,1760195177440,-201.49733206,0.00024124,3]
[390887428,1760195177462,-129.72406642,0.00024124,10]
[390887429,1760195181212,-367.79421095,0.00024124,10]
[390887430,1760195181725,-369.94172263,0.00024124,10]
[390887431,1760195181757,-154.15,0.00024124,3]
[390887432,1760195181789,-462.47,0.00024124,3]
[390887433,1760195181822,-300.0,0.00024132,2]
[390887434,1760195181854,-454.22579482,0.00024133,2]
[390887435,1760195181891,-246.72289569,0.00024133,2]
[390887436,1760195181925,-500.0,0.00024133,2]
[390887437,1760195181956,-311.2872585,0.00024133,2]
[390887438,1760195181987,-451.74675332,0.00024133,2]
[390887439,1760195182020,-581.41036073,0.00024133,2]
[390887440,1760195182064,-500.0,0.00024133,2]
[390887441,1760195182595,-267.58210597,0.00024134,2]
[390887442,1760195185580,-239.16009592,0.00024134,2]
[390887443,1760195187067,-154.39117937,0.00024134,2]
[390887444,1760195202093,571.24,0.00024124,3]
[390887445,1760195203087,-302.01391222,0.00024134,2]
[390887446,1760195203256,151.0,0.000233,7]
[390887447,1760195203563,151.0,0.000219,4]
[390887448,1760195203965,151.0,0.000206,3]
[390887449,1760195204333,151.0,0.000192,2]
[390887450,1760195204650,151.0,0.000178,2]
[390887451,1760195204976,9.86042862,0.000165,2]
[390887452,1760195205003,141.13957138,0.000165,2]
[390887453,1760195205313,-235.26310056,0.00024134,2]
[390887454,1760195207732,-154.0,0.00024134,2]
[390887455,1760195209200,-219.84910342,0.00024134,2]
[390887456,1760195210657,-190.31904551,0.00024134,2]
[390887457,1760195213604,-286.20369376,0.00024134,2]
[390887458,1760195215030,150.0,0.0001943,2]
[390887459,1760195215386,-362.49875345,0.00024134,2]
[390887460,1760195215446,173.56,0.00021196,2]
[390887461,1760195215941,260.34,0.00022963,2]
[390887462,1760195217343,-205.04921337,0.00024134,2]
[390887463,1760195222423,-244.51755038,0.00024134,2]
[390887464,1760195222844,300.0,0.00024133,2]
[390887465,1760195222971,277.1,0.00024124,3]
[390887466,1760195224950,-300.16631947,0.00024134,2]
[390887467,1760195226701,-320.59218606,0.00024134,2]
[390887468,1760195228226,1255.73178648,0.00023682,2]
[390887469,1760195228701,1255.73178648,0.0002394,2]
[390887470,1760195229228,-207.6052691,0.00024134,2]
[390887471,1760195230662,-151.29439503,0.00024134,2]
[390887472,1760195232116,-245.87392014,0.00024134,2]
[390887473,1760195233988,831.32,0.00024124,3]
[390887474,1760195236033,1000.0,0.00024133,2]
[390887475,1760195241688,2840.0276302,0.00023781,2]
[390887477,1760195244440,190.42,0.00024124,3]
[390887478,1760195245915,417.15472785,0.00024134,2]
[390887479,1760195247971,-414.17979024,0.00024134,2]
[390887480,1760195253158,-325.70539461,0.00024134,2]
[390887481,1760195255012,-268.35142128,0.00024134,2]
[390887482,1760195255129,571.27,0.00024124,3]
[390887483,1760195256794,-322.94580909,0.00024134,2]
[390887484,1760195258203,-370.38449612,0.00024134,2]
[390887485,1760195259785,-174.29460539,0.00024134,2]
[390887486,1760195262781,-300.0,0.00024134,2]
[390887487,1760195264229,-268.55696701,0.00024134,2]
[390887488,1760195264609,1061.24406899,0.00024131,2]
[390887489,1760195264635,5985.36765631,0.00024131,2]
[390887490,1760195265812,-201.86505734,0.00024134,2]
[390887491,1760195268748,-366.02684716,0.00024134,2]
[390887492,1760195271288,-255.76960315,0.00024134,2]
[390887493,1760195275293,-286.72368673,0.00024134,2]
[390887494,1760195276724,-408.89569398,0.00024134,2]
[390887495,1760195280230,496.69,0.00015225,2]
[390887496,1760195280510,496.69,0.00015225,2]
[390887497,1760195281025,-277.17809647,0.00024134,2]
[390887498,1760195281214,500.0,0.00024133,2]
[390887499,1760195281253,500.0,0.00024133,2]
[390887500,1760195281293,500.0,0.00024133,2]
[390887501,1760195281325,500.0,0.00024133,2]
[390887502,1760195281354,500.0,0.00024133,2]
[390887503,1760195281387,500.0,0.00024133,2]
[390887504,1760195281416,500.0,0.00024133,2]
[390887505,1760195281451,500.0,0.00024133,2]
[390887506,1760195281480,422.10639068,0.00024133,2]
[390887507,1760195281511,500.0,0.00024133,2]
[390887508,1760195281544,500.0,0.00024133,2]
[390887509,1760195281573,500.0,0.00024133,2]
[390887510,1760195281602,500.0,0.00024133,2]
[390887511,1760195281634,500.0,0.00024133,2]
[390887512,1760195281674,500.0,0.00024133,2]
[390887513,1760195281705,500.0,0.00024133,2]
[390887514,1760195281737,500.0,0.00024133,2]
[390887515,1760195281768,500.0,0.00024133,2]
[390887516,1760195281804,84.52360932,0.00024133,2]
[390887517,1760195281832,415.47639068,0.00024133,2]
[390887518,1760195281863,500.0,0.00024133,2]
[390887519,1760195281899,500.0,0.00024133,2]
[390887520,1760195281928,500.0,0.00024133,2]
[390887521,1760195281961,500.0,0.00024133,2]
[390887522,1760195281997,427.09258161,0.00024133,2]
[390887523,1760195282032,500.0,0.00024133,2]
[390887524,1760195282068,500.0,0.00024133,2]
[390887525,1760195282099,500.0,0.00024133,2]
[390887526,1760195282136,500.0,0.00024133,2]
[390887527,1760195282201,500.0,0.00024133,2]
[390887528,1760195282245,500.0,0.00024133,2]
[390887529,1760195282277,500.0,0.00024133,2]
[390887530,1760195282310,500.0,0.00024133,2]
[390887531,1760195282390,500.0,0.00024133,2]
[390887532,1760195282427,500.0,0.00024133,2]
[390887533,1760195282460,500.0,0.00024133,2]
[390887534,1760195282504,500.0,0.00024133,2]
[390887535,1760195282542,500.0,0.00024133,2]
[390887536,1760195282579,518.99022696,0.00024133,2]
[390887537,1760195282620,138.45080075,0.00024133,2]
[390887538,1760195282652,361.54919925,0.00024133,2]
[390887539,1760195282696,300.0,0.00024133,2]
[390887540,1760195284834,-303.99478734,0.00024134,2]
[390887541,1760195292749,159.12963926,0.00024133,2]
[390887542,1760195296110,150.0,0.00019438,2]
[390887543,1760195296549,245.17,0.00021205,2]
[390887544,1760195297055,367.76,0.00022972,2]
[390887545,1760195297168,158.16,0.00024133,14]
[390887546,1760195300148,-10000.0,0.00024134,2]
[390887569,1760195320075,1767.0,0.00024068,2]
[390887572,1760195324741,-10000.0,0.00024134,2]
[390887573,1760195343745,300.0,0.00024133,2]
[390887574,1760195345076,-10000.0,0.00024134,2]
[390887575,1760195346332,-10000.0,0.00024134,2]
[390887581,1760195369640,155.0,0.00027397,120]
[390887582,1760195372083,-195.61469416,0.00024134,2]
[390887583,1760195372106,-500.0,0.00024134,5]
[390887584,1760195372132,-9304.38530584,0.00024134,2]
[390887586,1760195378550,150.0,0.00019109,2]
[390887587,1760195378904,225.75,0.00020846,2]
[390887588,1760195379390,338.63,0.00022583,2]
[390887591,1760195394812,158.61640324,0.00024043,2]
[390887592,1760195401330,300.0,0.00024133,2]
[390887593,1760195402096,300.0,0.00024133,2]
[390887595,1760195403058,300.0,0.00024133,2]
[390887596,1760195403651,300.0,0.00024133,2]